bitfinex-derivatives/quotes_SOLF0:USTF0_20241215
["timestamp","ask_amount","ask_price","bid_price","bid_amount"]
[1734269641115,2.28,219.81,219.69,1.4967]
[1734269641914,2.28,219.81,219.74,2.2761]
[1734269643317,2.28,219.81,219.69,1.4967]
[1734269643521,2.2756,219.8,219.75,2.2761]
[1734269643719,2.28,219.81,219.69,1.4967]
[1734269643918,2.9086,219.82,219.69,1.4967]
[1734269643919,1.4595,219.82,219.79,2.2756]
[1734269644120,1.4595,219.82,219.73,2.28]
[1734269644323,2.28,219.86,219.73,2.28]
[1734269644824,2.28,219.86,219.77,2.2758]
[1734269644825,2.2752,219.83,219.77,2.2758]
[1734269645221,2.2751,219.84,219.78,2.2757]
[1734269646217,2.2752,219.83,219.78,2.2757]
[1734269646623,1.5298,219.85,219.79,2.2756]
[1734269646824,1.5298,219.85,219.74,2.28]
[1734269647026,2.28,219.86,219.74,2.28]
[1734269647216,5.35951013,219.92,219.74,2.28]
[1734269647217,1.4658,219.92,219.74,2.28]
[1734269647420,2.28,219.91,219.75,8.36941114]
[1734269647622,2.28,219.91,219.69,1.4967]
[1734269647823,2.2751,219.85,219.7,5.05565616]
[1734269648023,2.28,219.84,219.71,8.36873486]
[1734269648224,2.28,219.85,219.72,8.36873486]
[1734269648424,4.5549,219.86,219.78,2.2757]
[1734269648724,2.28,219.86,219.73,2.28]
[1734269648918,2.28,219.86,219.74,8.36235334]
[1734269649119,2.28,219.86,219.75,5.0515421]
[1734269649319,2.28,219.86,219.76,5.05102313]
[1734269649516,2.28,219.86,219.73,2.28]
[1734269649714,2.28,219.86,219.74,5.04991864]
[1734269649921,2.28,219.86,219.75,5.04991864]
[1734269650220,2.28,219.86,219.73,2.28]
[1734269650426,4.555,219.86,219.74,5.04869903]
[1734269650626,4.555,219.86,219.75,7.32869903]
[1734269650826,4.555,219.86,219.79,2.2756]
[1734269651232,2.2745,219.9,219.75,2.28]
[1734269651429,4.5545,219.9,219.76,5.04566538]
[1734269651629,4.5545,219.9,219.76,1.4621]
[1734269651831,4.5545,219.9,219.77,1.5388]
[1734269652229,4.5545,219.9,219.79,5.43780564]
[1734269653028,2.2746,219.89,219.82,2.2753]
[1734269653323,2.28,219.96,219.8,2.28]
[1734269653529,2.9329,220.05,219.8,2.28]
[1734269653530,1.5292,219.93,219.8,2.28]
[1734269653727,2.28,219.92,219.79,5.43780564]
[1734269653931,3.7779,219.92,219.79,5.43780564]
[1734269654125,3.7779,219.92,219.72,1.4324]
[1734269654326,2.2752,219.84,219.77,2.2758]
[1734269654530,2.28,219.85,219.77,5.36624119]
[1734269656328,2.2752,219.83,219.77,5.36624119]
[1734269658328,2.28,219.85,219.72,1.4324]
[1734269658529,1.4148,219.84,219.72,1.4324]
[1734269658733,4.4671,219.84,219.72,1.4324]
[1734269659332,4.4671,219.84,219.74,5.57471993]
[1734269660429,2.2753,219.83,219.76,2.2759]
[1734269660825,5.59841594,219.95,219.76,2.2759]
[1734269661033,6.6637,219.94,219.76,2.2759]
[1734269661235,2.2753,219.83,219.77,2.2758]
[1734269661531,2.28,219.83,219.77,2.2758]
[1734269662436,2.2753,219.82,219.77,2.2758]
[1734269663227,2.28,219.83,219.74,5.57471993]
[1734269663431,2.2756,219.8,219.75,5.07356304]
[1734269663627,2.2756,219.8,219.74,5.57471993]
[1734269663929,2.2756,219.8,219.75,5.07340881]
[1734269664127,2.2756,219.8,219.74,5.57471993]
[1734269664326,2.2756,219.8,219.75,5.07342004]
[1734269664531,2.2756,219.8,219.75,2.276]
[1734269665235,2.2756,219.8,219.76,5.08077061]
[1734269665437,1.4452,219.82,219.78,2.2757]
[1734269667737,2.2751,219.84,219.74,5.57471993]
[1734269667935,2.2751,219.84,219.75,10.94250733]
[1734269668233,2.28,219.85,219.76,8.42584194]
[1734269668437,2.2751,219.84,219.79,2.2756]
[1734269671235,2.28,219.85,219.74,5.57471993]
[1734269671438,2.28,219.85,219.75,8.42656225]
[1734269671633,1.4513,219.84,219.76,5.09012185]
[1734269671843,2.9003,219.84,219.75,2.276]
[1734269672038,2.9003,219.84,219.76,5.09040213]
[1734269672239,2.9003,219.84,219.74,5.57471993]
[1734269672446,2.9003,219.84,219.75,5.09079162]
[1734269672642,2.9003,219.84,219.76,5.09079162]
[1734269672842,2.9003,219.84,219.74,5.57471993]
[1734269673142,2.9003,219.84,219.75,5.09092669]
[1734269673447,2.9003,219.84,219.74,5.57471993]
[1734269673642,2.9003,219.84,219.75,5.09087294]
[1734269673848,2.9003,219.84,219.74,5.57471993]
[1734269674044,2.2756,219.8,219.75,5.09031184]
[1734269674248,2.9003,219.84,219.74,5.57471993]
[1734269674848,2.9003,219.84,219.72,1.4324]
[1734269675149,4.4496,219.84,219.73,5.09194594]
[1734269675345,4.4496,219.84,219.74,2.2761]
[1734269675840,2.276,219.76,219.68,2.28]
[1734269676146,2.28,219.77,219.69,10.94328122]
[1734269676450,2.28,219.77,219.7,8.4264142]
[1734269676748,4.5559,219.77,219.71,7.36641839]
[1734269676948,4.5559,219.77,219.71,2.2764]
[1734269677145,4.5559,219.77,219.72,5.09030142]
[1734269677358,4.5559,219.77,219.68,2.28]
[1734269677648,4.5559,219.77,219.69,10.94453401]
[1734269677846,4.5559,219.77,219.7,10.94453401]
[1734269678049,4.5559,219.77,219.71,5.09058567]
[1734269678251,4.5559,219.77,219.72,5.09058567]
[1734269678450,4.5559,219.77,219.71,2.2764]
[1734269678646,4.5559,219.77,219.72,5.09083404]
[1734269678843,2.28,219.77,219.61,7.78127128]
[1734269679049,2.2765,219.71,219.64,2.2771]
[1734269679248,2.2765,219.71,219.65,10.94949385]
[1734269679444,2.2765,219.71,219.66,8.43153573]
[1734269679649,2.2765,219.71,219.67,5.09256231]
[1734269679853,2.2765,219.71,219.64,2.2771]
[1734269680148,2.28,219.72,219.66,5.52931845]
[1734269680353,2.28,219.72,219.67,5.09263314]
[1734269680551,2.28,219.72,219.66,5.52931845]
[1734269680751,2.28,219.72,219.67,5.09156264]
[1734269680950,2.28,219.72,219.68,5.09156264]
[1734269681144,2.28,219.72,219.67,2.2769]
[1734269681453,2.28,219.72,219.68,5.09092212]
[1734269681653,2.28,219.72,219.67,2.2769]
[1734269681947,2.28,219.72,219.69,2.2766]
[1734269682152,2.2762,219.75,219.7,5.09088011]
[1734269682349,2.2762,219.75,219.69,2.2766]
[1734269682848,2.2762,219.75,219.7,5.09252169]
[1734269683050,2.2762,219.75,219.69,2.2766]
[1734269683254,2.2762,219.75,219.7,7.36817139]
[1734269683451,2.2762,219.75,219.7,2.2766]
[1734269684651,2.2759,219.77,219.66,5.52931845]
[1734269684854,2.28,219.77,219.67,16.28646641]
[1734269685050,2.28,219.77,219.68,18.56533422]
[1734269685246,2.28,219.77,219.69,16.28533422]
[1734269685449,2.28,219.77,219.72,2.2764]
[1734269685754,2.28,219.77,219.69,1.4383]
[1734269685955,2.28,219.77,219.7,10.94401839]
[1734269686146,2.28,219.77,219.71,8.42704586]
[1734269686351,2.28,219.77,219.72,5.09034421]
[1734269686655,2.28,219.77,219.73,2.2762]
[1734269687252,2.28,219.77,219.71,2.2764]
[1734269687453,2.28,219.77,219.69,1.4383]
[1734269687657,2.28,219.77,219.7,5.09108857]
[1734269687963,2.2762,219.74,219.67,2.2768]
[1734269688261,2.2762,219.74,219.68,8.43009171]
[1734269688451,2.2762,219.74,219.69,5.09214999]
[1734269688657,2.2762,219.74,219.68,2.2767]
[1734269688859,2.2762,219.74,219.69,5.09280361]
[1734269689054,2.2762,219.74,219.68,2.2767]
[1734269689258,2.2762,219.74,219.69,10.50388366]
[1734269689458,2.2762,219.74,219.69,5.41120692]
[1734269690562,2.28,219.77,219.69,5.41120692]
[1734269690764,2.2761,219.75,219.69,7.68790692]
[1734269690965,2.28,219.77,219.69,5.41120692]
[1734269691365,2.276,219.76,219.71,2.2765]
[1734269691662,2.28,219.77,219.69,5.41120692]
[1734269691965,2.28,219.77,219.73,2.2762]
[1734269692160,1.5417,219.81,219.69,5.41120692]
[1734269692363,2.22,219.8,219.7,8.42608971]
[1734269692664,2.22,219.79,219.71,10.94275172]
[1734269692865,2.22,219.79,219.72,8.4262793]
[1734269693171,2.22,219.79,219.73,5.0898745]
[1734269693358,2.22,219.79,219.69,6.92100692]
[1734269693666,2.22,219.79,219.7,16.27847605]
[1734269693867,2.22,219.79,219.71,10.94122832]
[1734269694067,2.22,219.79,219.72,10.94122832]
[1734269694267,2.22,219.79,219.73,5.0890574]
[1734269694464,2.22,219.79,219.74,7.3651574]
[1734269694666,2.22,219.79,219.74,2.2761]
[1734269696765,2.22,219.79,219.75,2.2761]
[1734269698264,1.5417,219.81,219.69,6.92100692]
[1734269698565,2.22,219.8,219.77,2.2758]
[1734269701866,2.22,219.8,219.7,1.4891]
[1734269702066,2.22,219.8,219.71,16.2929288]
[1734269702270,2.22,219.8,219.72,16.2929288]
[1734269702471,2.22,219.8,219.73,10.95097187]
[1734269702768,2.22,219.8,219.74,8.43232321]
[1734269703073,2.2758,219.78,219.75,5.09702391]
[1734269703274,2.2758,219.78,219.7,1.4891]
[1734269703672,2.2758,219.78,219.73,2.2763]
[1734269703867,2.2758,219.78,219.69,9.14100692]
[1734269703868,2.2759,219.77,219.74,5.09803829]
[1734269704067,2.22,219.8,219.7,2.2765]
[1734269704272,2.22,219.8,219.71,10.96464227]
[1734269704477,2.22,219.8,219.72,10.96464227]
[1734269704772,2.22,219.8,219.73,5.0999228]
[1734269705075,2.22,219.8,219.69,6.92100692]
[1734269705271,1.4447,219.83,219.7,16.30672791]
[1734269705474,2.22,219.82,219.71,16.30672791]
[1734269705675,2.22,219.82,219.72,16.30672791]
[1734269705874,2.22,219.82,219.76,2.2759]
[1734269706076,2.22,219.82,219.69,9.14100692]
[1734269706276,2.2756,219.79,219.74,2.2761]
[1734269706575,2.2756,219.79,219.75,5.09743083]
[1734269706770,2.2756,219.79,219.74,2.2761]
[1734269706968,2.2756,219.79,219.75,5.09676272]
[1734269707175,2.2756,219.79,219.74,2.2761]
[1734269707375,2.2756,219.79,219.75,5.09692517]
[1734269707568,2.2756,219.79,219.74,2.2761]
[1734269707770,2.2756,219.79,219.75,5.09677373]
[1734269707968,2.22,219.82,219.69,6.92100692]
[1734269708177,2.22,219.82,219.7,18.57804509]
[1734269708374,2.22,219.82,219.71,10.95684251]
[1734269708579,2.22,219.82,219.72,5.09632284]
[1734269708877,2.2759,219.77,219.73,5.09632284]
[1734269709177,2.22,219.76,219.71,2.2765]
[1734269709378,2.22,219.76,219.72,2.2763]
[1734269709677,2.22,219.76,219.72,5.09796244]
[1734269709873,2.22,219.76,219.74,2.2762]
[1734269710676,2.22,219.76,219.75,2.2761]
[1734269711576,2.2754,219.81,219.76,2.2759]
[1734269711774,2.2754,219.81,219.69,6.92100692]
[1734269711775,2.22,219.8,219.69,6.92100692]
[1734269711979,2.22,219.8,219.7,16.29447595]
[1734269712171,2.22,219.8,219.71,16.29447595]
[1734269712372,2.22,219.8,219.72,10.95639102]
[1734269712678,2.22,219.8,219.75,2.276]
[1734269713781,2.22,219.8,219.73,2.2762]
[1734269713978,2.22,219.8,219.74,5.10059036]
[1734269714279,2.2759,219.77,219.73,2.2763]
[1734269714474,2.2759,219.77,219.74,5.10242892]
[1734269714679,2.2759,219.77,219.73,2.2763]
[1734269714881,2.2759,219.77,219.74,5.10354418]
[1734269715077,2.2759,219.77,219.73,2.2763]
[1734269715278,2.2759,219.77,219.74,5.10425565]
[1734269715477,2.2759,219.77,219.73,2.2763]
[1734269715672,2.2759,219.77,219.74,5.10572058]
[1734269715872,2.2759,219.77,219.73,2.2763]
[1734269716277,2.2759,219.77,219.74,5.10615393]
[1734269716473,2.2759,219.77,219.72,2.2764]
[1734269716677,2.2759,219.77,219.73,8.44939868]
[1734269716881,2.2759,219.77,219.74,5.10746157]
[1734269717077,2.2761,219.76,219.71,2.2765]
[1734269717283,2.22,219.75,219.72,10.97765541]
[1734269717484,2.22,219.75,219.73,8.45167696]
[1734269717684,2.22,219.75,219.74,5.10869345]
[1734269718684,2.22,219.75,219.73,2.2762]
[1734269718885,2.22,219.75,219.74,5.10895316]
[1734269719087,2.22,219.75,219.73,2.2762]
[1734269719287,2.22,219.75,219.74,5.10887161]
[1734269720680,2.18,219.78,219.74,5.10887161]
[1734269720881,2.18,219.78,219.75,5.10887161]
[1734269721087,2.18,219.81,219.7,5.55445916]
[1734269721287,1.4447,219.83,219.78,2.2757]
[1734269721589,2.18,219.82,219.78,2.2757]
[1734269723687,2.18,219.82,219.71,1.4391]
[1734269723987,2.18,219.82,219.79,2.2756]
[1734269726586,2.18,219.82,219.78,2.2757]
[1734269727289,2.18,219.82,219.76,2.2759]
[1734269727582,2.18,219.82,219.77,5.10402424]
[1734269727782,2.18,219.82,219.71,1.4391]
[1734269727989,2.2756,219.79,219.74,2.2761]
[1734269728283,2.2756,219.79,219.75,8.4436995]
[1734269728489,2.2756,219.79,219.76,5.1039918]
[1734269728692,2.2756,219.79,219.7,5.55445916]
[1734269728882,2.2756,219.79,219.71,13.79044597]
[1734269729087,2.2756,219.79,219.72,10.9700463]
[1734269729384,2.2761,219.77,219.73,10.9700463]
[1734269729690,2.18,219.77,219.74,5.10521091]
[1734269729890,2.18,219.77,219.7,5.55445916]
[1734269730087,4.4561,219.77,219.71,13.25038029]
[1734269730390,4.4561,219.77,219.72,10.97378029]
[1734269730586,4.4561,219.77,219.73,5.10697834]
[1734269730792,4.4561,219.77,219.74,5.10697834]
[1734269730987,2.2762,219.76,219.7,7.83115916]
[1734269731193,2.18,219.77,219.71,10.97797695]
[1734269731489,2.18,219.77,219.72,7.38551915]
[1734269731694,2.18,219.77,219.72,2.2766]
[1734269732197,4.4561,219.77,219.7,5.55445916]
[1734269732392,4.4561,219.77,219.71,8.45146295]
[1734269732588,4.4561,219.77,219.72,5.10905847]
[1734269732793,4.4561,219.77,219.7,7.83115916]
[1734269732994,2.2763,219.75,219.71,5.10838752]
[1734269733195,2.18,219.77,219.7,5.55445916]
[1734269733494,2.18,219.77,219.71,5.10822778]
[1734269733796,2.18,219.77,219.72,5.10822778]
[1734269733995,2.18,219.77,219.7,7.83105916]
[1734269734301,2.18,219.77,219.71,5.10811446]
[1734269734597,2.18,219.77,219.72,9.9085056]
[1734269734796,2.18,219.77,219.73,8.44259816]
[1734269734999,2.18,219.77,219.74,5.10750218]
[1734269735296,2.18,219.77,219.75,5.10750218]
[1734269735497,4.4559,219.77,219.73,2.2762]
[1734269735697,4.4559,219.77,219.74,5.10637668]
[1734269735992,4.4559,219.77,219.75,5.10637668]
[1734269736198,2.2758,219.78,219.72,2.2764]
[1734269736397,2.18,219.79,219.73,10.96629805]
[1734269736698,2.18,219.79,219.74,10.96629805]
[1734269736998,1.5148,219.86,219.75,5.10623195]
[1734269737200,2.18,219.85,219.76,5.10623195]
[1734269737395,2.18,219.85,219.7,5.55445916]
[1734269737692,2.18,219.85,219.72,2.2763]
[1734269737898,2.18,219.85,219.73,8.4422841]
[1734269738094,2.18,219.85,219.74,5.10675179]
[1734269738300,2.18,219.85,219.72,2.2763]
[1734269738496,2.2759,219.77,219.73,5.10406513]
[1734269738797,2.18,219.76,219.73,2.2763]
[1734269739095,4.456,219.76,219.7,5.55445916]
[1734269739296,2.18,219.76,219.71,10.95878885]
[1734269739501,2.18,219.76,219.72,8.43569904]
[1734269739696,2.18,219.76,219.7,5.55445916]
[1734269739697,2.18,219.76,219.73,5.10278525]
[1734269740000,2.18,219.76,219.7,5.55445916]
[1734269740200,2.18,219.76,219.71,10.96542664]
[1734269740502,2.18,219.76,219.72,10.71675085]
[1734269740803,2.18,219.76,219.73,5.10575445]
[1734269740998,2.18,219.76,219.72,2.2763]
[1734269741301,2.18,219.76,219.73,5.10568218]
[1734269741596,2.18,219.76,219.72,2.2763]
[1734269742903,4.4561,219.76,219.71,2.2764]
[1734269743103,2.18,219.76,219.72,5.10504565]
[1734269743304,2.18,219.76,219.71,2.2764]
[1734269743605,2.18,219.76,219.72,7.38076233]
[1734269743805,2.18,219.76,219.72,2.2764]
[1734269744196,2.18,219.76,219.73,5.10390581]
[1734269744405,2.18,219.76,219.72,2.2764]
[1734269744603,2.18,219.76,219.73,5.10384243]
[1734269744900,2.18,219.76,219.72,2.2764]
[1734269745103,2.18,219.76,219.74,2.2761]
[1734269745296,2.18,219.79,219.7,5.55445916]
[1734269745496,2.18,219.79,219.71,10.95989139]
[1734269745699,4.4555,219.81,219.75,2.2761]
[1734269745897,2.18,219.8,219.76,5.10337986]
[1734269746105,2.18,219.8,219.75,2.2761]
[1734269746317,4.4555,219.8,219.76,5.10231775]
[1734269746608,4.4555,219.8,219.75,2.2761]
[1734269746807,4.4555,219.8,219.76,7.37810459]
[1734269747003,4.4555,219.8,219.77,5.10220459]
[1734269747204,4.4555,219.8,219.76,2.2759]
[1734269747405,4.4555,219.8,219.74,2.2761]
[1734269747607,4.4555,219.8,219.75,5.10231132]
[1734269747807,4.4555,219.8,219.7,7.73445916]
[1734269748112,4.4555,219.8,219.71,2.52266266]
[1734269748300,4.4555,219.8,219.76,2.2759]
[1734269748503,2.2752,219.83,219.7,7.73445916]
[1734269748705,1.5148,219.86,219.71,10.95519742]
[1734269748706,2.18,219.82,219.71,10.95519742]
[1734269748900,2.18,219.82,219.72,10.95519742]
[1734269749105,2.18,219.82,219.73,10.95519742]
[1734269749411,2.18,219.82,219.74,10.95519742]
[1734269749708,2.18,219.84,219.75,10.95519742]
[1734269749907,2.18,219.84,219.76,10.95519742]
[1734269750208,2.18,219.84,219.77,10.95519742]
[1734269750504,2.18,219.84,219.78,13.23089742]
[1734269750807,2.18,219.84,219.79,5.10119284]
[1734269751006,2.18,219.84,219.8,5.10119284]
[1734269751213,2.18,219.84,219.7,7.73445916]
[1734269751408,2.18,219.84,219.71,10.9426061]
[1734269751605,2.18,219.84,219.72,10.9426061]
[1734269751805,2.18,219.84,219.73,5.09537191]
[1734269752004,2.18,219.84,219.74,10.94253835]
[1734269752213,2.18,219.84,219.75,10.94253835]
[1734269752412,2.18,219.84,219.79,2.2756]
[1734269752613,2.18,219.84,219.8,5.09537191]
[1734269752813,2.18,219.84,219.79,2.2756]
[1734269753015,2.18,219.84,219.8,5.09441207]
[1734269753213,2.18,219.84,219.79,2.2756]
[1734269753412,2.2754,219.82,219.76,2.2759]
[1734269753615,2.18,219.84,219.77,5.09777367]
[1734269753811,2.18,219.84,219.69,3.6898]
[1734269754015,2.2757,219.79,219.72,2.2763]
[1734269754209,4.4557,219.79,219.73,10.950803]
[1734269754407,2.18,219.79,219.74,5.09907153]
[1734269754607,2.18,219.79,219.69,1.5098]
[1734269754608,2.18,219.79,219.7,2.2765]
[1734269754812,2.18,219.79,219.71,8.43466378]
[1734269755012,2.18,219.79,219.72,5.10206297]
[1734269755212,2.276,219.76,219.71,2.2765]
[1734269755519,2.276,219.76,219.72,10.58597745]
[1734269755812,2.276,219.76,219.72,5.48439588]
[1734269756315,2.18,219.79,219.72,5.48439588]
[1734269756515,2.2759,219.77,219.72,5.48439588]
[1734269760319,2.2759,219.77,219.71,2.2765]
[1734269760812,2.18,219.79,219.71,2.2765]
[1734269761018,1.4139,219.78,219.71,2.2765]
[1734269762522,2.276,219.76,219.71,2.2765]
[1734269762924,2.276,219.76,219.71,7.8131824]
[1734269765525,2.276,219.76,219.72,5.10280589]
[1734269765727,2.276,219.76,219.71,7.8131824]
[1734269765927,2.276,219.76,219.72,5.10278815]
[1734269766226,2.276,219.76,219.71,7.8131824]
[1734269766426,2.276,219.76,219.72,5.10267021]
[1734269766625,2.276,219.76,219.71,7.8131824]
[1734269766827,2.276,219.76,219.72,5.10269036]
[1734269767022,2.276,219.76,219.71,7.8131824]
[1734269767222,2.276,219.76,219.72,5.10266096]
[1734269767422,2.276,219.76,219.71,7.8131824]
[1734269767627,2.276,219.76,219.72,5.10250952]
[1734269767925,2.276,219.76,219.71,7.8131824]
[1734269768122,2.2762,219.75,219.72,5.10234725]
[1734269768326,2.18,219.74,219.63,2.18]
[1734269768530,2.18,219.74,219.64,10.9591997]
[1734269768720,2.2763,219.73,219.68,2.2767]
[1734269769028,2.2763,219.73,219.69,5.10275671]
[1734269769223,2.2763,219.73,219.68,2.2767]
[1734269769523,2.2763,219.73,219.69,5.10300098]
[1734269769828,2.18,219.74,219.7,7.37966053]
[1734269770029,2.18,219.74,219.7,2.2766]
[1734269770526,2.18,219.74,219.71,5.10239553]
[1734269770734,2.18,219.74,219.7,2.2766]
[1734269770925,2.18,219.74,219.71,5.1025884]
[1734269771122,2.18,219.74,219.7,2.2766]
[1734269771326,2.18,219.74,219.71,5.10267893]
[1734269771531,4.4561,219.75,219.7,2.2766]
[1734269771732,4.4561,219.75,219.71,5.10275552]
[1734269772029,4.4561,219.75,219.71,2.2764]
[1734269772224,2.18,219.75,219.72,5.10395251]
[1734269772430,2.18,219.75,219.68,5.54534503]
[1734269772628,2.18,219.75,219.69,10.96405678]
[1734269772830,2.18,219.75,219.7,10.96405678]
[1734269773028,2.18,219.75,219.71,5.10510064]
[1734269773228,2.18,219.75,219.72,5.10510064]
[1734269773429,4.4559,219.77,219.72,2.2763]
[1734269774636,2.276,219.76,219.72,2.2763]
[1734269774830,2.18,219.77,219.7,2.2765]
[1734269775034,2.18,219.77,219.71,5.10680928]
[1734269775231,2.2761,219.75,219.7,2.2765]
[1734269775428,2.18,219.77,219.71,5.10654419]
[1734269775632,2.18,219.77,219.68,5.54534503]
[1734269775937,2.276,219.76,219.69,10.96665394]
[1734269776238,2.276,219.76,219.72,2.2764]
[1734269777232,2.18,219.77,219.68,5.54534503]
[1734269777432,1.5195,219.86,219.69,10.96774919]
[1734269777634,2.18,219.85,219.7,10.96774919]
[1734269777834,2.18,219.85,219.71,10.96774919]
[1734269778030,2.18,219.85,219.72,10.96774919]
[1734269778228,2.2755,219.81,219.76,2.2759]
[1734269778537,2.18,219.8,219.7,1.4905]
[1734269778733,2.18,219.8,219.71,8.43421942]
[1734269779038,2.18,219.8,219.74,2.2761]
[1734269779240,2.18,219.8,219.75,5.10098101]
[1734269779434,2.18,219.8,219.76,5.10098101]
[1734269779740,2.18,219.8,219.71,3.33230275]
[1734269779934,2.18,219.8,219.72,10.95454921]
[1734269780135,2.18,219.8,219.73,10.95454921]
[1734269780330,2.18,219.8,219.74,5.10070723]
[1734269780537,2.18,219.8,219.71,3.33230275]
[1734269780538,2.18,219.8,219.75,5.10070723]
[1734269780728,2.18,219.82,219.71,3.33230275]
[1734269780930,2.18,219.82,219.72,10.95317133]
[1734269781138,3.0544,219.86,219.73,10.95317133]
[1734269781139,2.18,219.84,219.73,10.95317133]
[1734269781335,1.5349,219.86,219.74,13.13317133]
[1734269781535,2.18,219.88,219.77,5.49736897]
[1734269781742,2.18,219.88,219.78,9.82859984]
[1734269781930,4.4547,219.88,219.81,2.2754]
[1734269782935,4.4547,219.88,219.82,2.2753]
[1734269783132,2.18,219.88,219.78,1.4001]
[1734269783331,2.18,219.88,219.79,5.09495645]
[1734269783535,2.18,219.88,219.8,5.09495645]
[1734269783732,2.2744,219.92,219.79,2.18]
[1734269783939,2.2744,219.92,219.8,8.42158384]
[1734269784240,4.4544,219.92,219.81,5.09439323]
[1734269784431,4.4544,219.92,219.79,3.5993]
[1734269784432,4.4544,219.92,219.82,10.93583773]
[1734269784636,1.4854,219.94,219.83,5.09439323]
[1734269784835,2.18,219.93,219.86,2.2749]
[1734269785430,2.18,219.93,219.79,3.5993]
[1734269785636,4.4542,219.93,219.87,2.2748]
[1734269786032,3.6654,219.94,219.89,2.2746]
[1734269787140,3.6654,219.94,219.84,2.18]
[1734269787537,1.4642,220.03,219.84,2.18]
[1734269787739,2.8891,220.02,219.85,5.08309737]
[1734269787938,5.0691,220.02,219.86,5.08309737]
[1734269788136,5.0691,220.02,219.87,1.5251]
[1734269788337,2.2737,219.98,219.87,1.5251]
[1734269788838,2.2737,219.98,219.88,5.56277375]
[1734269789241,2.2737,219.98,219.89,2.18]
[1734269789435,2.2737,219.98,219.9,2.2744]
[1734269789736,2.2737,219.98,219.89,2.18]
[1734269790438,2.2737,219.98,219.91,2.2744]
[1734269790634,2.2736,219.99,219.89,2.18]
[1734269791041,5.0691,220.02,219.89,2.18]
[1734269791243,2.2734,220.01,219.89,2.18]
[1734269791639,2.8891,220.02,219.89,2.18]
[1734269791840,5.0691,220.02,219.89,2.18]
[1734269792036,3.6376,220.02,219.89,2.18]
[1734269792241,1.4576,220.02,219.89,2.18]
[1734269792542,2.18,220.08,219.9,5.06017907]
[1734269792743,2.18,220.07,220.0,2.2734]
[1734269794045,2.18,220.07,219.98,2.2736]
[1734269794242,2.18,220.07,219.94,2.18]
[1734269794542,1.4107,220.06,219.88,5.56277375]
[1734269794739,2.9632,220.05,219.88,5.56277375]
[1734269795645,2.2742,219.93,219.88,5.56277375]
[1734269795944,2.9632,220.05,219.88,5.56277375]
[1734269795945,2.18,220.01,219.88,5.56277375]
[1734269796144,2.18,220.0,219.89,1.554]
[1734269796949,4.4535,220.0,219.94,2.2741]
[1734269797139,2.18,220.0,219.89,1.554]
[1734269799749,2.2736,219.99,219.93,2.2742]
[1734269799946,2.18,220.0,219.93,2.2742]
[1734269800949,2.18,220.0,219.94,2.2741]
[1734269801947,2.2732,220.03,219.97,2.2738]
[1734269802151,2.18,220.03,219.9,1.5246]
[1734269802452,2.18,220.03,219.91,2.18]
[1734269802642,1.547,220.05,219.9,1.5246]
[1734269802643,3.8201,220.05,219.9,1.5246]
[1734269802844,2.18,220.04,219.88,5.56277375]
[1734269803050,3.6244,220.04,219.88,5.56277375]
[1734269803251,2.2737,219.98,219.91,2.2743]
[1734269803449,1.4444,220.04,219.89,1.4809]
[1734269803652,2.18,220.03,219.89,1.4809]
[1734269803843,3.6913,220.03,219.89,1.4809]
[1734269804353,2.2736,219.99,219.93,2.2742]